{"text_format":"1","workbook":"xlsx","n_sheets":6,"sheets":["Инструкция","Расчет","Правовое обоснование","Образец уведомления","Образец письма","Данные об организации"],"not_rendered":{"charts":0,"images":14,"macros":1,"external_links":0,"defined_names":3,"comments":0,"pivot_tables":0},"unopened":[],"bounds":{"document_bytes":16777216,"sheet_cells":100000,"rows_first":2000,"rows_last":500,"rows_between":2000,"halvings":0,"cell_chars":16384,"cell_head_chars":4096},"cells_cut":0,"cells_raw":0,"read":"whole","date_system":"1900"}

{"sheet":"Инструкция","index":0,"n_rows":52,"n_cols":11,"rows_kept":52,"cut":false,"hidden":false,"merged":[[4,0,4,19],[5,0,5,19],[2,0,2,19]]}
["Сервис расчета трудового стажа erudo.by"]
[]
["Видеоинструкция по пользованию: https://www.youtube.com/watch?v=TeIetUMUl6c"]
[]
["Сервис поможет рассчитать трудовой стаж в соответствии с Положением о порядке подтверждения и исчисления стажа работы для назначения пенсий, утвержденным постановлением Совета Министров Республики Беларусь от 24.12.1992 № 777 (далее - Положение)."]
[]
["Рекомендуемые требования к ПО: Microsoft Excel от версии 2013."]
["При первом открытии программы возможно появление следующего уведомления:"]
[]
[]
["Необходимо нажать кнопку",null,null,null,null,null,"  , чтобы продолжить работу с сервисом."]
["!","Перед началом работы необходимо убедиться, что включены макросы."]
["Сделать это можно следующим образом:"]
[]
[]
[]
[]
[]
["Либо при открытии может появиться следующее предупреждение:"]
[]
[]
["Необходимо нажать кнопку «Включить содержимое»."]
[]
["При открытии программы появится следующее окно:"]
[]
["В данном окне необходимо ввести (изменить) данные, которые автоматически будут подставлены"]
["в соответствующие ячейки листов «Образец уведомления» и «Образец письма»."]
[]
[]
[]
[]
[]
[]
["!","Самостоятельное добавление (удаление) строк (столбцов) в таблицу может привести к сбоям в работе программы!"]
[]
["Заполнение листа «Расчет»"]
[]
["      В таблицу вносятся сведения в соответствии с записями в трудовой книжке. Заполняется таблица в хронологическом порядке, строки при этом пропускать нельзя. Рассчитывается "]
["стаж за каждый период (от даты приема до даты увольнения), а также полный стаж по всем записям. День увольнения считается последним рабочим днем."]
["     В соответствии с Положением, при подсчете стажа:"]
["     - периоды работы по трудовой книжке исчисляются от даты приема на работу до даты увольнения. День увольнения считается последним рабочим днем;"]
["     - к полученной продолжительности стажа работы по каждому случаю увольнения добавляется один день;"]
["     - каждые 30 дней указанных периодов переводятся в месяцы, а каждые 12 месяцев этих периодов - в полные годы."]
[]
["При вводе некорректных данных на экране отобразится сообщение:",null,null,null,null,null,null,null,null,"               .","Ячейка, в которую введено неверное значение, подсвечивается красным цветом:"]
["Пока такое сообщение отображается на экране, данные расчета считать недействительными."]
["После ввода корректных данных сообщение исчезнет."]
[]
["Для добавления либо удаления строк необходимо воспользоваться кнопками:",null,null,null,null,null,null,null,"               . При удалении курсор должен быть установлен в строке, предназначенной для удаления."]
[]
["Кнопка ",null,null,"           удаляет все введенные пользователем данные и обнуляет расчет."]
["С помощью кнопок  ",null,null,null,null,"    можно ознакомиться с образцами соответствующих документов."]

{"sheet":"Расчет","index":1,"n_rows":36,"n_cols":28,"rows_kept":36,"cut":false,"hidden":false,"merged":[[9,1,9,8],[11,1,12,1],[11,4,12,4],[11,5,12,5],[11,6,11,8],[4,3,4,5],[5,3,5,5],[7,3,7,5],[2,1,2,8],[0,1,0,8],[6,3,6,5],[21,1,21,8],[11,2,12,3],[13,2,13,3],[14,2,14,3],[15,2,15,3],[16,2,16,3],[19,2,19,3],[17,2,17,3],[18,2,18,3]]}
[null,"Расчет трудового стажа"]
[]
[null,"Исходные данные"]
[]
[null,"Фамилия:"]
[null,"Имя:"]
[null,"Отчество:"]
[null,"Дата рождения:"]
[]
[null,"Расчет трудового стажа на каждом месте работы:"]
[]
[null,"№ п/п","Наименование организации",null,"Дата приема","Дата увольнения","Расчетный стаж за период",null,null,null,null,null,null,null,null,null,"проверка1",null,null,"проверка2",null,null,"добавляем день",null,null,"проверка3"]
[null,null,null,null,null,null,"лет ","месяцев","дней",null,null,null,null,"годы","месяцы","дни","годы","месяцы","дни","годы","месяцы","дни","годы","месяцы","дни","годы","месяцы","дни"]
[null,null,null,null,null,null,{"$f":"Z14","v":""},{"$f":"AA14","v":""},"",{"$f":"IF(AND(E14>F14,F14<>\"\",E14<>\"\"),\"Некорректная дата\",\"\")","v":""},"рсн",null,null,{"$f":"IF(AND(F14>=E14,ISBLANK(E14)=FALSE,ISBLANK(F14)=FALSE),DATEDIF(E14,F14,\"y\"),\"\")","v":""},{"$f":"IF(AND(F14>=E14,ISBLANK(E14)=FALSE,ISBLANK(F14)=FALSE),DATEDIF(E14,F14,\"ym\"),\"\")","v":""},{"$f":"IF(AND(F14>=E14,ISBLANK(E14)=FALSE,ISBLANK(F14)=FALSE),DATEDIF(E14,F14,\"md\"),\"\")","v":""},{"$f":"IF(AND(R14=12,O14<>\"\"),N14+1,N14)","v":""},{"$f":"IF(AND(P14=30,P14<>\"\"),O14+1,O14)","v":""},{"$f":"IF(AND(P14<>\"\",P14=30),0,P14)","v":""},{"$f":"Q14","v":""},{"$f":"IF(AND(R14=12,R14<>\"\"),0,R14)","v":""},{"$f":"S14","v":""},{"$f":"IF(T14=\"\",\"\",IF(X14=12,T14+1,T14))","v":""},{"$f":"IF(U14=\"\",\"\",(IF(V14+1=30,U14+1,U14)))","v":""},{"$f":"IF(V14=\"\",\"\",(IF(V14+1=30,0,V14+1)))","v":""},{"$f":"W14","v":""},{"$f":"IF(AND(X14<>\"\",X14=12),0,X14)","v":""},{"$f":"Y14","v":""}]
[null,null,null,null,null,null,{"$f":"Z15","v":""},"","",{"$f":"IF(AND(E15>F15,F15<>\"\",E15<>\"\"),\"Некорректная дата\",\"\")","v":""},"рс",null,null,{"$f":"IF(AND(F15>=E15,ISBLANK(E15)=FALSE,ISBLANK(F15)=FALSE),DATEDIF(E15,F15,\"y\"),\"\")","v":""},{"$f":"IF(AND(F15>=E15,ISBLANK(E15)=FALSE,ISBLANK(F15)=FALSE),DATEDIF(E15,F15,\"ym\"),\"\")","v":""},{"$f":"IF(AND(F15>=E15,ISBLANK(E15)=FALSE,ISBLANK(F15)=FALSE),DATEDIF(E15,F15,\"md\"),\"\")","v":""},{"$f":"IF(AND(R15=12,O15<>\"\"),N15+1,N15)","v":""},{"$f":"IF(AND(P15=30,P15<>\"\"),O15+1,O15)","v":""},{"$f":"IF(AND(P15<>\"\",P15=30),0,P15)","v":""},{"$f":"Q15","v":""},{"$f":"IF(AND(R15=12,R15<>\"\"),0,R15)","v":""},{"$f":"S15","v":""},{"$f":"IF(T15=\"\",\"\",IF(X15=12,T15+1,T15))","v":""},{"$f":"IF(U15=\"\",\"\",(IF(V15+1=30,U15+1,U15)))","v":""},{"$f":"IF(V15=\"\",\"\",(IF(V15+1=30,0,V15+1)))","v":""},{"$f":"W15","v":""},{"$f":"IF(AND(X15<>\"\",X15=12),0,X15)","v":""},{"$f":"Y15","v":""}]
[null,null,null,null,null,null,"","","","","рс",null,null,"","","","","","","","","","","","","","",""]
[null,null,null,null,null,null,"","","","","рс",null,null,"","","","","","","","","","","","","","",""]
[null,null,null,null,null,null,"","","","","рс",null,null,"","","","","","","","","","","","","","",""]
[null,null,null,null,null,null,"","","","","рс",null,null,"","","","","","","","","","","","","","",""]
[null,null,null,null,null,null,{"$f":"Z20","v":""},{"$f":"AA20","v":""},{"$f":"AB20","v":""},{"$f":"IF(AND(E20>F20,F20<>\"\",E20<>\"\"),\"Некорректная дата\",\"\")","v":""},"рск",null,null,{"$f":"IF(AND(F20>=E20,ISBLANK(E20)=FALSE,ISBLANK(F20)=FALSE),DATEDIF(E20,F20,\"y\"),\"\")","v":""},{"$f":"IF(AND(F20>=E20,ISBLANK(E20)=FALSE,ISBLANK(F20)=FALSE),DATEDIF(E20,F20,\"ym\"),\"\")","v":""},{"$f":"IF(AND(F20>=E20,ISBLANK(E20)=FALSE,ISBLANK(F20)=FALSE),DATEDIF(E20,F20,\"md\"),\"\")","v":""},{"$f":"IF(AND(R20=12,O20<>\"\"),N20+1,N20)","v":""},{"$f":"IF(AND(P20=30,P20<>\"\"),O20+1,O20)","v":""},{"$f":"IF(AND(P20<>\"\",P20=30),0,P20)","v":""},{"$f":"Q20","v":""},{"$f":"IF(AND(R20=12,R20<>\"\"),0,R20)","v":""},{"$f":"S20","v":""},{"$f":"IF(T20=\"\",\"\",IF(X20=12,T20+1,T20))","v":""},{"$f":"IF(U20=\"\",\"\",(IF(V20+1=30,U20+1,U20)))","v":""},{"$f":"IF(V20=\"\",\"\",(IF(V20+1=30,0,V20+1)))","v":""},{"$f":"W20","v":""},{"$f":"IF(AND(X20<>\"\",X20=12),0,X20)","v":""},{"$f":"Y20","v":""}]
[null,null,null,null,null,null,null,null,null,null,null,null,null,"","","","","","","","","","","","","","",""]
[null,"Итоги"]
[]
[]
[null,null,"Трудовой стаж:",{"$f":"G36","v":0},"лет",{"$f":"H36","v":0},"месяцев",{"$f":"I36","v":0},"дней"]
[]
[]
[]
[]
[]
[]
[]
[]
[null,null,null,null,null,null,null,null,null,null,null,null,null,"дни","месяцы","годы"]
[null,null,null,null,null,null,{"$f":"SUM(G14:G20)","v":0},{"$f":"SUM(H14:H20)","v":0},{"$f":"SUM(I14:I20)","v":0},null,null,null,null,{"$f":"IF(I35>30,MOD(I35,30),0)","v":0},{"$f":"IF((H35+O36)>=12,MOD(H35+O36,12),H35+O36)","v":0}]
[null,null,null,null,null,null,{"$f":"G35+P36","v":0},{"$f":"O35","v":0},{"$f":"IF(I35>=30,N35,I35)","v":0},null,null,null,null,null,{"$f":"IF((I35-N35)/30<1,0,(I35-N35)/30)","v":0},{"$f":"IF((H35+O36-O35)/12<1,0,(H35+O36-O35)/12)","v":0}]

{"sheet":"Правовое обоснование","index":2,"n_rows":12,"n_cols":1,"rows_kept":12,"cut":false,"hidden":false,"merged":[[11,0,11,8],[7,0,7,8],[8,0,8,8],[9,0,9,8],[10,0,10,8],[5,0,5,8],[0,0,0,8],[6,0,6,8],[1,0,1,8],[2,0,2,8],[3,0,3,8],[4,0,4,8]]}
["Правовое обоснование"]
["     Основным документом, подтверждающим периоды работы, является трудовая книжка. При отсутствии трудовой книжки, а также в тех случаях, когда в трудовой книжке содержатся неправильные и неточные сведения или отсутствуют записи об отдельных периодах работы, в подтверждение периодов работы принимаются справки, выданные на основании приказов, лицевых счетов, ведомостей на выдачу заработной платы и иных документальных данных, письменные трудовые договоры и соглашения с отметками об их выполнении, трудовые, послужные и формулярные списки, членские книжки членов кооперативных промышленных артелей и кооперативных артелей инвалидов и иные документы, содержащие сведения о периодах работы. "]
["     При этом периоды работы с 1 июля 1998 г. до 1 января 2003 г. подтверждаются справкой о периоде уплаты обязательных страховых взносов в бюджет фонда и о сумме заработной платы (дохода), из которой эти взносы уплачены, выдаваемой работодателем."]
["     Если помимо трудовой книжки заявитель представляет отдельные документы о работе за период до заполнения трудовой книжки, к которому относится суммарная запись, то весь стаж, записанный общим итогом, должен быть подтвержден документами. Это не касается случаев представления документов о периодах трудовой деятельности, записи о которых в соответствии с действующими правилами должны были вноситься в трудовую книжку отдельной строкой."]
["     Периоды работы по трудовой книжке исчисляются от даты приема на работу до даты увольнения. День увольнения считается последним рабочим днем."]
["     При подсчете стажа работы, в т.ч. специального, к полученной продолжительности стажа работы по каждому случаю увольнения добавляется один день."]
["     В соответствии с Положением о порядке подтверждения и исчисления стажа работы для назначения пенсий (утв. постановлением Совета Министров Республики Беларусь от 24.12.1992 № 777) при подсчете стажа:     "]
["     • периоды работы по трудовой книжке исчисляются от даты приема на работу до даты увольнения;"]
["    • к полученной продолжительности стажа работы по каждому случаю увольнения добавляется один день;"]
["     • каждые 30 дней указанных периодов переводятся в месяцы, а каждые 12 месяцев этих периодов — в полные годы;"]
["     • в случаях, когда в представленных документах о периодах работы, иной деятельности, других периодах, засчитываемых в стаж работы, указаны только годы без обозначения точных дат, при исчислении стажа работы за дату принимается 1 июля соответствующего года, а если не указано число месяца, то таковым считается 15-е число соответствующего месяца."]
["     "]

{"sheet":"Образец уведомления","index":3,"n_rows":28,"n_cols":8,"rows_kept":28,"cut":false,"hidden":false,"merged":[[0,0,0,8],[14,0,14,8],[15,0,15,8]]}
["ОБРАЗЕЦ уведомления о порядке обращения за пенсией"]
["__Наименование организации__",null,null,null,null,"Воспитателю дошкольного образования"]
[null,null,null,null,null,"Васильевой И. И."]
[]
[]
[]
["УВЕДОМЛЕНИЕ"]
[]
["14.03.2022 № 11"]
[]
["__Населенный пункт__"]
[]
["О порядке обращения за пенсией"]
[]
["     В соответствии со ст. 75 Закона Республики Беларусь от 17.04.1992 № 1596-XII «О пенсионном обеспечении» уведомляем вас о порядке обращения за пенсией."]
["     Заявитель до наступления пенсионного возраста подает заявление о назначении пенсии через нанимателя по месту последней работы. Наниматель в 10-дневный срок со дня поступления заявления оформляет необходимые для назначения пенсии документы и вместе с заявлением и своим представлением направляет их в районное (городское) управление (отдел) по труду, занятости и социальной защите по месту жительства заявителя."]
[]
[]
["__Должность__",null,null,null,"___________",null,null,"__ФИО руководителя__"]
[null,null,null,null,"Подпись"]
[]
["Уведомление получила лично",null,null,null,"___________",null,null,"И. И. Васильева"]
[null,null,null,null,"Подпись",null,null,"2022-03-14"]
[]
[]
["С приказом ознакомлена"]
["суть уведомления мне понятна",null,null,null,"___________",null,null,"И. И. Васильева"]
[null,null,null,null,"Подпись",null,null,"2022-03-14"]

{"sheet":"Образец письма","index":4,"n_rows":18,"n_cols":8,"rows_kept":18,"cut":false,"hidden":false,"merged":[[0,0,0,8],[13,0,13,8]]}
["ОБРАЗЕЦ письма-запроса о стаже работника для целей назначения трудовой пенсии"]
[null,null,null,"НА БЛАНКЕ ДЛЯ ПИСЬМА"]
[]
[]
["15.03.2022 № 96",null,null,null,null,null,"Заведующему"]
["На № ___ от ____             ",null,null,null,null,null,"ГУО «Ясли-сад № 1»"]
[null,null,null,null,null,null,"Семеновой В.В."]
[null,null,null,null,null,null,"ул. Уборевича, 44"]
[null,null,null,null,null,null,"220000, г. Минск"]
[]
["О предоставлении информации"]
["о периоде трудовой деятельности"]
[]
["    Просим вас предоставить справку о трудовом стаже Ивановой Илоны Дмитриевны, _____ г.р., которая предположительно работала в ГУО «Ясли-сад № 1» воспитателем дошкольного образования в период 2006‒2007 гг. Справка необходима для подтверждения стажа работы для назначения пенсии по возрасту."]
[]
[]
["__Должность_",null,null,"______________________",null,null,null,"__ФИО руководителя__"]
[null,null,null,null,"Подпись"]

{"sheet":"Данные об организации","index":5,"n_rows":4,"n_cols":1,"rows_kept":4,"cut":false,"hidden":false,"merged":[]}
["Наименование"]
["ФИО руководителя"]
["Наименование должности"]
["Населенный пункт"]